Cogmind - Beta 16 @@@ ROGUE MODE // 2025.12.26 @ 14:02:45 Player: Foolatea Result: Self-destructed Performance ------------- Evolutions (1) 500 Regions Visited (2) 400 Robots Destroyed (26) 130 Value Destroyed (478) 478 Prototype IDs (4) 80 Alien Tech Used (0) 0 Bonus (0) 0 TOTAL SCORE: 1588 Bonus ------- None Cogmind --------- Core Integrity 356/400 Matter 241/300 Energy 250/250 System Corruption 0% Temperature Cool (0) Movement Walking (190) Ox1 Location -9/Materials Parts ------- > --- POWER (1) -------- Ion Engine > --- PROPULSION (4) --- Aluminum Leg > --- UTILITY (2) ------ Small Storage Unit Weapon Shielding > --- WEAPON (2) ------- Grenade Launcher Mining Claw > --- INVENTORY (8) ---- Ion Engine Light Ion Engine Light Treads Light Treads ECM Suite Hacking Suite Grenade Launcher Datajack Peak State ------------ > --- POWER ------------ Ion Engine > --- PROPULSION ------- Aluminum Leg Aluminum Leg > --- UTILITY ---------- Small Storage Unit Weapon Shielding > --- WEAPON ----------- Grenade Launcher Mining Claw > --- INVENTORY -------- Ion Engine Light Ion Engine Light Treads Light Treads ECM Suite Hacking Suite Grenade Launcher Datajack [Rating: 8] Favorites ----------- Power Ion Engine Engine Ion Engine Propulsion Aluminum Leg Leg Aluminum Leg Utility Small Storage Unit Storage Small Storage Unit Protection Weapon Shielding Weapon Grenade Launcher Energy Gun EM Pulse Gun Ballistic Gun Assault Rifle Launcher Grenade Launcher Slashing Weapon Mining Claw Special Melee Weapon Datajack Build | -11 -10 -9 ------- Run | Yrd Mat Mat Slots Evolved 2 | . . 2 Power . | . . . Propulsion 2 | . . 2 Utility . | . . . Weapon . | . . . Parts Attached 16 | 5 10 1 Power 1 | 1 . . Engine 1 | 1 . . Core . | . . . Reactor . | . . . Propulsion 2 | 2 . . Treads . | . . . Leg 2 | 2 . . Wheel . | . . . Hover . | . . . Flight . | . . . Utility 4 | 1 3 . Device . | . . . Storage 1 | 1 . . Processor . | . . . Hackware . | . . . Protection 3 | . 3 . Artifact . | . . . Weapon 9 | 1 7 1 Energy Gun 1 | . 1 . Energy Cannon . | . . . Ballistic Gun 1 | 1 . . Ballistic Cannon . | . . . Launcher 5 | . 4 1 Special Weapon . | . . . Impact Weapon . | . . . Slashing Weapon 1 | . 1 . Piercing Weapon . | . . . Special Melee Weapon 1 | . 1 . Unidentified Prototypes . | . . . Parts Lost 4 | . 3 1 Power . | . . . Propulsion 1 | . . 1 Utility 1 | . 1 . Weapon 2 | . 2 . Highest Loss Streak 2 | . 2 1 To Critical Strikes 1 | . . 1 Average Backups 7 | 1 7 8 Power 1 | . 1 2 Propulsion 1 | . 2 2 Utility 1 | . 1 2 Weapon 1 | . 1 1 Tool/Special . | . . . Unused Backups 9 | . 3 6 Power 3 | . 1 2 Propulsion 2 | . . 2 Utility 4 | . 2 2 Weapon . | . . . Tool/Special . | . . . Average Slot Usage (%) 95 | . 97 75 Engine 13 | . 14 11 Leg 27 | . 28 20 Storage 13 | . 14 11 Protection 11 | . 11 11 Ballistic Gun 1 | . 1 . Launcher 12 | . 12 5 Slashing Weapon 10 | . 10 11 Special Melee Weapon 2 | . 2 5 Peak Build Rating 8 | 5 8 8 Average Rating 6 | 4 6 7 On Entrance 4 | . 5 8 Avg Prop Armor Cover (%) . | . . . Naked Turns . | . . . Heaviest Build 18 | 12 18 16 Greatest Support 20 | 20 20 20 Greatest Overweight (x) 1 | 1 . . Average Overweight (x) . | . . . Largest Inventory Capacity 8 | 8 8 8 Average Capacity 7 | 7 8 8 Most Carried 8 | 4 8 8 Average Carried 7 | 2 7 8 Final Capacity 8 | 8 8 8 Final Carried 8 | 4 8 8 Class Distribution -------------------- 100% | Mutant Dominant Class ---------------- Mutant | -10/Materials Mutant | -9/Materials Resources | -11 -10 -9 ----------- Run | Yrd Mat Mat Matter Collected 569 | 199 344 26 Remotely . | . . . Salvage Created 459 | . 394 65 Parts 37 | . 23 14 Haulers Intercepted . | . . . Recyclers Shooed 4 | . 3 1 Parts Field Recycled . | . . . Retrieved Matter . | . . . Parts Self-Destructed . | . . . Prevented . | . . . Parts Restored . | . . . Kills | -11 -10 -9 ------- Run | Yrd Mat Mat Combat Hostiles Destroyed 15 | . 10 5 Melee 1 | . 1 . AOE 14 | . 9 5 Classes Destroyed 7 | . 6 1 Worker 5 | . 5 . Builder 1 | . . 1 Recycler 1 | . 1 . Operator 1 | . 1 . Watcher 3 | . 2 1 Swarmer 7 | . 3 4 Grunt 8 | . 7 1 Best Kill Streak 7 | . 4 7 Combat Bots Only 5 | . 3 5 Max Kills in Single Turn 2 | . 2 2 Gunslinging . | . . . Exploded 2 | . 2 2 Melee 1 | . 1 . Uniques/NPCs Destroyed . | . . . Combat | -11 -10 -9 -------- Run | Yrd Mat Mat Hostile Shots Fired 73 | . 46 27 Missed 25 | . 12 13 Hits 48 | . 34 14 Projectile 48 | . 34 14 Critical Strikes 2 | . 1 1 Damage Taken 672 | . 512 160 Core 125 | . 81 44 Absorbed by Shields . | . . . Redirected to Shielding 7 | . . 7 Core Remaining (%) 83 | 100 67 . Volleys Fired 28 | . 21 7 Largest 1 | . 1 1 Hottest 30 | . 30 30 Shots Fired 28 | . 21 7 Gun 1 | . 1 . Cannon . | . . . Launcher 27 | . 20 7 Special . | . . . Kinetic 1 | . 1 . Thermal . | . . . Explosive 27 | . 20 7 Electromagnetic . | . . . Robot Hit Streak 4 | . 4 . Robot Miss Streak 4 | . 3 4 Penetration Max . | . . . Secondary Targets . | . . . Shots Hit Robots 20 | . 20 . Core Hits 42 | . 29 13 Critical Kills . | . . . Critical Parts Destroyed . | . . . Critical Strikes . | . . . Melee Attacks 22 | . 22 . Impact . | . . . Slashing 19 | . 19 . Piercing . | . . . Sneak Attacks 8 | . 8 . Combat Hostiles . | . . . Follow-up Attacks . | . . . Damage Inflicted 1618 | . 1317 301 Guns . | . . . Cannons . | . . . Explosions 1295 | . 994 301 Melee 313 | . 313 . Ramming 10 | . 10 . Kinetic . | . . . Thermal . | . . . Explosive 1295 | . 994 301 Electromagnetic . | . . . Impact . | . . . Slashing 313 | . 313 . Piercing . | . . . Highest Corruption 7 | . 7 . Average Corruption 6 | . 6 . Corruption Purged . | . . . Corruption Blocked . | . . . Effects 3 | . 3 . Message Errors 1 | . 1 . Energy Discharges 1 | . 1 . Data Loss (minor) 1 | . 1 . Overload Shots . | . . . Overflow Damage 44 | . 28 16 Projectiles . | . . . Explosions 25 | . 9 16 Melee 19 | . 19 . Knockbacks . | . . . Impact . | . . . Kinetic . | . . . Secondary . | . . . Self-Inflicted Damage 209 | . 163 46 Shots 10 | . 8 2 Rammed . | . . . Targets Rammed 4 | . 4 . Kicked 4 | . 4 . Crushed . | . . . Highest Temperature 7 | . 7 . Average Temperature 3 | . 3 . Received Heat Transfer 147 | . 147 . Siege Activations . | . . . Martial Activations . | . . . Shielding Activations . | . . . Robots Disrupted . | . . . Combat Hostiles . | . . . Robots Corrupted . | . . . Combat Hostiles . | . . . Parts Fried . | . . . Impact Corruptions . | . . . Robots Melted . | . . . Combat Hostiles . | . . . Parts Melted . | . . . Heat Transferred . | . . . Parts Sabotaged . | . . . Parts Stolen . | . . . Parts Stripped . | . . . Power Chain Reactions . | . . . Alert | -11 -10 -9 ------- Run | Yrd Mat Mat Maximum Alert Level . | . . . Low Security (%) 100 | 100 100 100 Level 1 . | . . . Level 2 . | . . . Level 3 . | . . . Level 4 . | . . . Level 5 . | . . . High Security . | . . . Max Security . | . . . Peak Influence 152 | . 149 152 Initial 13 | . . 13 Average 76 | . 82 36 Influence Increases 624 | . 452 172 Destroy 0b10 Robot/C 300 | . 200 100 Destroy 0b10 Robot/NC 55 | . 45 10 Destroy Leader 66 | . 54 12 Successful Hack 14 | . 14 . Disable Machine 45 | . 30 15 Destroy Structure 144 | . 109 35 Influence Decreases 472 | . 419 53 Entered New Map 20 | . . 20 Time Decay 412 | . 389 23 Lost Part 40 | . 30 10 Squads Dispatched 2 | . 2 . Investigation . | . . . Extermination . | . . . Reinforcement 2 | . 2 . Assault . | . . . Garrison . | . . . Intercept . | . . . Searches Triggered . | . . . Construction Impeded . | . . . Haulers Reinforced . | . . . Active Scanning Responses . | . . . Cargo Convoy Interrupts . | . . . Stealth | -11 -10 -9 --------- Run | Yrd Mat Mat Distress Signals 1 | . 1 . Communications Jammed . | . . . Distress Signals . | . . . Times Spotted 26 | . 17 9 Peak Tracking Total 5 | . 3 5 Tactical Retreats . | . . . Traps | -11 -10 -9 ------- Run | Yrd Mat Mat Traps Triggered 4 | . 4 . Indirectly . | . . . Trap Hack Attempts . | . . . Triggered . | . . . Disarmed . | . . . Reprogrammed 4 | . 4 . Reused . | . . . Traps Extracted . | . . . Installed . | . . . Triggered . | . . . Machines | -11 -10 -9 ---------- Run | Yrd Mat Mat Machines Disabled 4 | . 3 1 Max in Single Turn 1 | . 1 1 Machines Repaired . | . . . Machines Dismantled . | . . . Machines Sabotaged . | . . . Overloaded Fab Kills . | . . . Hacking | -11 -10 -9 --------- Run | Yrd Mat Mat Machines Accessed 5 | . 5 . Terminals 5 | . 5 . Fabricators . | . . . Repair Stations . | . . . Recycling Units . | . . . Scanalyzers . | . . . Garrison Access . | . . . Total Hacks 12 | . 12 . Successful 6 | . 6 . Failed 6 | . 6 . Catastrophic 2 | . 2 . Database Lockouts . | . . . Manual . | . . . Terminals 12 | . 12 . Fabricators . | . . . Repair Stations . | . . . Recycling Units . | . . . Scanalyzers . | . . . Garrison Access . | . . . Terminal Hacks 6 | . 6 . Prototype ID Bank 2 | . 2 . Reprogram Traps 1 | . 1 . Hauler Manifests 1 | . 1 . Registered Components 1 | . 1 . Registered Prototypes 1 | . 1 . Fabricator Hacks . | . . . Repair Station Hacks . | . . . Recycling Unit Hacks . | . . . Scanalyzer . | . . . Garrison Access Hacks . | . . . Unauthorized Hacks . | . . . Terminals . | . . . Fabricators . | . . . Repair Stations . | . . . Recycling Units . | . . . Scanalyzers . | . . . Garrison Access . | . . . Data Cores Recovered . | . . . Used . | . . . Hacking Detections 3 | . 3 . Full Trace Events . | . . . Feedback Events . | . . . Feedback Blocked . | . . . Robot Schematics Acquired . | . . . Robots Built . | . . . Authchips . | . . . Time . | . . . Total Robot Build Rating . | . . . Part Schematics Acquired . | . . . Parts Built . | . . . Authchips . | . . . Time . | . . . Total Part Build Rating . | . . . Part Studies Acquired . | . . . Parts Repaired . | . . . Time . | . . . Parts Recycled . | . . . Recycled Matter . | . . . Retrieved Matter . | . . . Retrieved Components . | . . . Parts Scanalyzed . | . . . Part Schematics Acquired . | . . . Parts Damaged . | . . . Bothacking | -11 -10 -9 ------------ Run | Yrd Mat Mat Used RIF Installer . | . . . Robots Hacked 2 | . 2 . Non-combat 1 | . 1 . Combat 1 | . 1 . Robot Hacks Applied 3 | . 3 . parse_system 2 | . 2 . no_distress 1 | . 1 . Relay Couplers Released . | . . . Fabnet Peak Effective % . | . . . Robots Rewired . | . . . Allies Hacked . | . . . Hacks Repelled . | . . . Allies | -11 -10 -9 -------- Run | Yrd Mat Mat Total Allies . | . . . Largest Group . | . . . Highest-Rated Group . | . . . Highest-Rated Ally . | . . . Total Orders . | . . . Ally Attacks . | . . . Total Damage . | . . . Kills . | . . . Allies Corrupted . | . . . Allies Melted . | . . . Intel | -11 -10 -9 ------- Run | Yrd Mat Mat Active Infowar (turns) . | . . . Robot Analysis Total . | . . . Derelict Logs Recovered . | . . . Drone Launches . | . . . Drone Recoveries . | . . . Exploration | -11 -10 -9 ------------- Run | Yrd Mat Mat Turns Passed 1312 | 62 1176 74 Spaces Moved 943 | 44 851 48 Core 5 | 5 . . Treads . | . . . Legs 938 | 39 851 48 Wheels . | . . . Hover . | . . . Flight . | . . . Fastest Speed 50 | 50 120 120 Average Speed 119 | 115 120 120 Slowest Speed 120 | 120 120 120 Overloaded Moves . | . . . Propulsion Burnouts . | . . . Robots Hopped . | . . . Potential Cave-ins . | . . . Cave-ins Triggered . | . . . Exploration Rate (%) 36 | 3 96 9 Regions Visited 2 Branch Regions . Pre-discovered Areas . | . . . Known Exits Taken . | . . . Unknown Exits Taken 2 | 1 1 . Scrap Searched . | . . . Spaces Dug 6 | . 6 . Terrain Destroyed 162 | . 129 33 Melee 6 | . 6 . Projectile . | . . . AOE 156 | . 123 33 Terrain Rammed . | . . . Walls Destroyed . | . . . Machines Disabled . | . . . Actions | -11 -10 -9 --------- Run | Yrd Mat Mat Total 1052 | 52 944 56 Wait 13 | . 13 . Move 941 | 43 850 48 Hop . | . . . Pick Up 18 | 4 14 . Fast Attach 7 | 5 2 . Attach 3 | . 3 . Detach . | . . . Swap 8 | . 7 1 Drop 8 | . 8 . Fire 28 | . 21 7 Melee 22 | . 22 . Ram . | . . . Kick 4 | . 4 . Crush . | . . . Escape Stasis . | . . . Rewire . | . . . Trap . | . . . Miscellaneous . | . . . Route ------- -11/Scrapyard -10/Materials (discovered 4 exits: [*Mat x3] / [*Min]) -9/Materials History --------- Turn | Location | Event 10 | -11/Scrapyard | Discovered new exit (range 16) 63 | -11/Scrapyard | Entered Materials 210 | -10/Materials | Discovered new exit (range 6) 312 | -10/Materials | Build established: Mutant 387 | -10/Materials | Discovered new exit (range 9) 649 | -10/Materials | Discovered new exit (range 16) 907 | -10/Materials | Discovered new exit (range 11) 1239 | -10/Materials | Entered another Materials area 1239 | -9/Materials | Evolved 2 slots: Propulsion x2 1313 | -9/Materials | Self-destructed Last Messages --------------- U-05 Engineer lays Concrete. K-01 Serf cleans the Neutrino Reactor. Acquired 12 matter. U-05 Engineer lays Concrete. Acquired 10 matter. U-05 Engineer lays Concrete. R-06 Scavenger collects Lgt. Assault Rifle. Acquired 4 matter. U-05 Engineer builds a Wall. R-06 Scavenger collects Flight Unit. U-05 Engineer builds a Wall. K-01 Serf cleans the Neutrino Reactor. Critical hit (Destroy). Aluminum Leg destroyed. Repair Station disabled. Backup Power I tumbles out of repair station. Backup Propulsion I tumbles out of repair station. G-34 Mercenary destroyed. U-05 Engineer destroyed. Map ----- +----------------------------------------------------+ | ?????????????????????????????????????????????????? | | ?????????????????????????????????????????????????? | | ?????????????????????????????????????????????????? | | ?????????????????????????????????????????????????? | | ?????????????????????????????????????????????????? | | ?????????????????????????????????????????????????? | | ?????????????????????????????????????????????????? | | ?????????????????????????????????????????????????? | | ?????????????????????????????????????????????????? | | ?????????????????????????????????????????????????? | | ????????????????????????? ??????????????????????? | | ????????????????????????? ??????????????????????? | | ????????????????????????? ??????????????????????? | | ????????????????????????? ??????????????????????? | | ???????????????????????## ??????????????????????? | | ??????????????????????## #######???????????????? | | ????????????????????# ! / ] !#??????????????? | | ????????????????????# """g! #??????????????? | | ????????????????????#r"R g""" """ #???#??????????? | | ????????????????????#s" %""" """ #?? +??????????? | | ????????????????????#!* = """ """k#? #??????????? | | ??????????? ????###%! # #??????????? | | ??????????? ## #!= ##r #??????????? | | ?????????? = #??????????? | | ?????????? r #??????????? | | ??????????m @ #??????????? | | ??????????????#### ### * ######??????????? | | ??????????????????# = * = ##???????????????? | | ??????????????????# """ * ##????????????????? | | ??????????????????# """ ################## | | ??????????????????# """ # | | ??????????????????# # # | | ??????????????????# """ # # | | ??????????????????# """ ###########+########### | | ??????????????????# """ #?????????????????????? | | ??????????????????# ?? #?????????????????????? | | ????????????????????????####?????????????????????? | | ?????????????????????????????????????????????????? | | ?????????????????????????????????????????????????? | | ?????????????????????????????????????????????????? | | ?????????????????????????????????????????????????? | | ?????????????????????????????????????????????????? | | ?????????????????????????????????????????????????? | | ?????????????????????????????????????????????????? | | ?????????????????????????????????????????????????? | | ?????????????????????????????????????????????????? | | | | | | | | | +----------------------------------------------------+ Best States ------------- Heat Dissipation 28 Energy Generation 10 Energy Capacity 250 Matter Stores 300 Matter Capacity 300 Sight Range 16 Terrain Scan Density 10 Armor Coverage 150 Weapon Shielding 33 Evasion (%) 55 Item Schematics ----------------- None Robot Schematics ------------------ None Fabricated ------------ Nothing Repaired ---------- Nothing Studied --------- None Alien Tech Used ----------------- None Achievements -------------- Junior Dev Challenges ------------ None Game ------ Seed CompanionParticleMegashotty Manual? 0 Play Time 00:48:34 Cumulative 7.7 hours Start 2025.12.25 @ 23:40:34 End 2025.12.26 @ 14:02:45 Sessions 3 Manual Loads 0 Difficulty Rogue Special Mode None Game No. 6 Rogue 6 Adventurer 0 Explorer 0 Win Type - Total 0 Types 0/0/0/0/0/0/0/0/0/0 Lore% 7 Gallery% 8 Achievement% 9 Wizard Run 0 Options --------- Layout 1 ASCII 0 Keyboard 0 Movement Mouse Keybinds 0 Fullscreen 1 Font 32/CogWide Map View 25x17 Zoom Use 83% Tactical HUD 0 Map Filters NONE Filters NONE Steam 1 RUN: 6c5fb46f-52c8-486b-950f-71eecb0a50ee